fUSD/lending_fUSD_20250824
["ID","MTS","AMOUNT","RATE_DAILY","PERIOD"]
[381146881,1756076919389,-2378.196449,0.00021,2]
[381146882,1756076919412,-151.0,0.00021,2]
[381146883,1756076919436,-669.299743,0.00021,2]
[381146884,1756076919458,-2378.19644,0.00021,2]
[381146885,1756076919480,-151.0,0.00021,2]
[381146886,1756076919503,-669.299743,0.00021,2]
[381146887,1756076919525,-669.299743,0.00021,2]
[381146888,1756076919548,-669.299743,0.00021,2]
[381146889,1756076919572,-669.299743,0.00021,2]
[381146890,1756076919599,-447.480564,0.00021,2]
[381146891,1756076919622,-669.299743,0.00021,2]
[381146892,1756076919644,-447.480564,0.00021,2]
[381146893,1756076919667,-669.299743,0.00021,2]
[381146894,1756076919689,-447.480564,0.00021,2]
[381146895,1756076919712,-447.480564,0.00021,2]
[381146896,1756076919734,-151.0,0.00021,2]
[381146897,1756076919757,-447.480564,0.00021,2]
[381146898,1756076919779,-669.299743,0.00021,2]
[381146899,1756076919803,-447.480564,0.00021,2]
[381146900,1756076919826,-669.299743,0.00021,2]
[381146901,1756076919848,-447.480564,0.00021,2]
[381146902,1756076919870,-151.0,0.00021,2]
[381146903,1756076919892,-151.0,0.00021,2]
[381146904,1756076919916,-447.480564,0.00021,2]
[381146905,1756076919940,-669.299743,0.00021,2]
[381146906,1756076919965,-151.0,0.00021,2]
[381146907,1756076919988,-151.0,0.00021,2]
[381146908,1756076920011,-447.480564,0.00021,2]
[381146909,1756076920035,-669.299743,0.00021,2]
[381146910,1756076920059,-151.0,0.00021,2]
[381146911,1756076920082,-151.0,0.00021,2]
[381146912,1756076920109,-151.0,0.00021,2]
[381146913,1756076920133,-447.480564,0.00021,2]
[381146914,1756076920157,-669.299746,0.00021,2]
[381146915,1756076920180,-151.0,0.00021,2]
[381146916,1756076920203,-447.480564,0.00021,2]
[381146917,1756076920228,-151.0,0.00021,2]
[381146918,1756076920253,-447.480564,0.00021,2]
[381146919,1756076920277,-151.0,0.00021,2]
[381146920,1756076920301,-447.480564,0.00021,2]
[381146921,1756076920599,-151.0,0.00021,2]
[381146922,1756076920637,-447.480564,0.00021,2]
[381146923,1756076920658,-151.0,0.00021,2]
[381146924,1756076920680,-151.0,0.00021,2]
[381146925,1756076920702,-151.0,0.00021,2]
[381146926,1756076920726,-447.480564,0.00021,2]
[381146927,1756076920747,-151.0,0.00021,2]
[381146928,1756076920777,-447.480564,0.00021,2]
[381146929,1756076920803,-151.0,0.00021,2]
[381146930,1756076920826,-447.480564,0.00021,2]
[381146931,1756076920849,-151.0,0.00021,2]
[381146932,1756076920872,-447.480564,0.00021,2]
[381146933,1756076920896,-151.0,0.00021,2]
[381146934,1756076920919,-447.480564,0.00021,2]
[381146935,1756076920941,-151.0,0.00021,2]
[381146936,1756076920966,-447.480563,0.00021,2]
[381146937,1756076920989,-151.0,0.00021,2]
[381146938,1756076921012,-151.0,0.00021,2]
[381146939,1756076921037,-151.0,0.00021,2]
[381146940,1756076921059,-206.536926,0.00021,2]
[381146941,1756076921082,-151.0,0.00021,2]
[381146942,1756076921106,-249.11579,0.00021,2]
[381146943,1756076921129,-151.0,0.00021,2]
[381146944,1756076921152,-151.0,0.00021,2]
[381146945,1756076921176,-249.11579,0.00021,2]
[381146946,1756076921200,-151.0,0.00021,2]
[381146947,1756076921226,-249.11579,0.00021,2]
[381146948,1756076921249,-151.0,0.00021,2]
[381146949,1756076921279,-249.11579,0.00021,2]
[381146950,1756076921304,-249.11579,0.00021,2]
[381146951,1756076921329,-151.0,0.00021,2]
[381146952,1756076921355,-249.11579,0.00021,2]
[381146953,1756076921379,-151.0,0.00021,2]
[381146954,1756076921405,-249.11579,0.00021,2]
[381146955,1756076921434,-151.0,0.00021,2]
[381146956,1756076921461,-151.0,0.00021,2]
[381146957,1756076921486,-249.11579,0.00021,2]
[381146958,1756076921510,-151.0,0.00021,2]
[381146959,1756076921535,-151.0,0.00021,2]
[381146960,1756076921559,-249.11579,0.00021,2]
[381146961,1756076921583,-151.0,0.00021,2]
[381146962,1756076921609,-249.11579,0.00021,2]
[381146963,1756076921633,-249.11579,0.00021,2]
[381146964,1756076921657,-151.0,0.00021,2]
[381146965,1756076921680,-151.0,0.00021,2]
[381146966,1756076921704,-249.11579,0.00021,2]
[381146967,1756076921730,-151.0,0.00021,2]
[381146968,1756076921754,-291.861344,0.00021,2]
[381146969,1756076921784,-249.11579,0.00021,2]
[381146970,1756076921811,-249.11579,0.00021,2]
[381146971,1756076921836,-249.11579,0.00021,2]
[381146972,1756076921862,-249.11579,0.00021,2]
[381146973,1756076921887,-249.11579,0.00021,2]
[381146974,1756076921912,-249.11579,0.00021,2]
[381146975,1756076921936,-249.11579,0.00021,2]
[381146976,1756076921964,-249.115798,0.00021,2]
[381146977,1756076921991,-234.566172,0.00021,2]
[381146978,1756076922016,-234.566172,0.00021,2]
[381146979,1756076922044,-234.566172,0.00021,2]
[381146980,1756076922068,-234.566172,0.00021,2]
[381146981,1756076922093,-234.566172,0.00021,2]
[381146982,1756076922119,-234.566172,0.00021,2]
[381146983,1756076922144,-234.566172,0.00021,2]
[381146984,1756076922169,-234.566172,0.00021,2]
[381146985,1756076922195,-234.566172,0.00021,2]
[381146986,1756076922223,-234.566172,0.00021,2]
[381146987,1756076922250,-234.566172,0.00021,2]
[381146988,1756076922276,-234.566172,0.00021,2]
[381146989,1756076922304,-234.566172,0.00021,2]
[381146990,1756076922331,-234.566172,0.00021,2]
[381146991,1756076922357,-234.566172,0.00021,2]
[381146992,1756076922381,-234.566172,0.00021,2]
[381146993,1756076922407,-234.566172,0.00021,2]
[381146994,1756076922434,-234.566172,0.00021,2]
[381146995,1756076922461,-234.566172,0.00021,2]
[381146996,1756076922486,-234.566167,0.00021,2]
[381146997,1756076922512,-151.0,0.00021,2]
[381146998,1756076922536,-151.0,0.00021,2]
[381146999,1756076922562,-151.0,0.00021,2]
[381147000,1756076922587,-241.14846,0.00021,2]
[381147001,1756076922611,-151.0,0.00021,2]
[381147002,1756076922636,-151.0,0.00021,2]
[381147003,1756076922662,-151.0,0.00021,2]
[381147004,1756076922686,-262.36118,0.00021,2]
[381147005,1756076922711,-170.162456,0.00021,2]
[381147006,1756076922735,-151.0,0.00021,2]
[381147007,1756076922760,-151.0,0.00021,2]
[381147008,1756076922785,-167.788551,0.00021,2]
[381147009,1756076922811,-151.0,0.00021,2]
[381147010,1756076922836,-167.788551,0.00021,2]
[381147011,1756076922860,-167.788551,0.00021,2]
[381147012,1756076922886,-167.788551,0.00021,2]
[381147013,1756076922910,-167.788551,0.00021,2]
[381147014,1756076922936,-167.788551,0.00021,2]
[381147015,1756076922965,-167.788551,0.00021,2]
[381147016,1756076922990,-167.788551,0.00021,2]
[381147017,1756076923014,-151.0,0.00021,2]
[381147018,1756076923040,-151.0,0.00021,2]
[381147019,1756076923064,-151.0,0.00021,2]
[381147020,1756076923088,-151.0,0.00021,2]
[381147021,1756076923112,-206.772017,0.00021,2]
[381147022,1756076923136,-2068.0,0.00021,2]
[381147023,1756076923160,-244.115601,0.00021,2]
[381147024,1756076923185,-445.81293918,0.00021,2]
[381147025,1756076923212,-444.74007634,0.00021,2]
[381147026,1756076923239,-446.87184758,0.00021,2]
[381147027,1756076923265,-500.0,0.00021,2]
[381147028,1756076923290,-500.80308435,0.00021,2]
[381147029,1756076923315,-151.0,0.00021011,2]
[381147030,1756076923342,-151.0,0.00021011,2]
[381147031,1756076923371,-151.0,0.00021011,2]
[381147032,1756076923397,-151.0,0.00021011,2]
[381147033,1756076923425,-151.0,0.00021011,2]
[381147034,1756076923452,-151.0,0.00021011,2]
[381147035,1756076923478,-151.0,0.00021011,2]
[381147036,1756076923502,-151.0,0.00021011,2]
[381147037,1756076923527,-151.0,0.00021011,2]
[381147038,1756076923552,-151.0,0.00021011,2]
[381147039,1756076923577,-151.0,0.00021011,2]
[381147040,1756076923602,-151.067712,0.00021011,2]
[381147041,1756076923627,-151.067712,0.00021011,2]
[381147042,1756076923653,-151.067712,0.00021011,2]
[381147043,1756076923680,-151.067712,0.00021011,2]
[381147044,1756076923705,-3987.06373729,0.00021022,2]
[381147045,1756076923732,-500.0,0.00021033,2]
[381147046,1756076923756,-500.0,0.00021033,2]
[381147047,1756076923781,-500.0,0.00021033,2]
[381147048,1756076923805,-150.92143273,0.00021033,2]
[381147049,1756076923830,-500.0,0.00021033,2]
[381147050,1756076923855,-500.0,0.00021033,2]
[381147051,1756076923881,-500.0,0.00021033,2]
[381147052,1756076923908,-497.88463817,0.00021037,2]
[381147055,1756076959940,-559.45,0.00019828,2]
[381147056,1756076959964,-1299.74,0.00020172,2]
[381147057,1756076959987,-1270.24,0.00020172,2]
[381147058,1756076960009,-1000.0,0.00020255,2]
[381147059,1756076960034,-150.02,0.00020463,2]
[381147060,1756076960055,-446.76768326,0.00020463,2]
[381147061,1756076960077,-456.05830877,0.00020463,2]
[381147062,1756076960097,-151.98,0.00020463,2]
[381147063,1756076960119,-1288.92,0.00020463,2]
[381147064,1756076960140,-1274.99,0.00020463,2]
[381147065,1756076960162,-1286.36,0.00020463,2]
[381147066,1756076960184,-1252.44,0.00020463,2]
[381147067,1756076960207,-1277.94,0.00020464,2]
[381147068,1756076960230,-1262.71,0.00020464,2]
[381147069,1756076960252,-957.5551,0.000209,2]
[381147070,1756076960281,-1000.0,0.000209,2]
[381147071,1756076960306,-500.0,0.00020926,2]
[381147072,1756076960328,-150.0,0.00020999,2]
[381147073,1756076960349,-151.0,0.00021,2]
[381147074,1756076960375,-151.0,0.00021,2]
[381147075,1756076960398,-151.0,0.00021,2]
[381147076,1756076960419,-151.0,0.00021,2]
[381147077,1756076960443,-844.35788172,0.00021,2]
[381147078,1756076960466,-1264.35,0.00021,2]
[381147079,1756076960488,-450.94865053,0.00021,2]
[381147080,1756076960515,-1279.1,0.00021,2]
[381147081,1756076960539,-685.11536183,0.00021037,2]
[381147082,1756076960560,-500.0,0.0002105,2]
[381147083,1756076960581,-500.0,0.0002105,2]
[381147084,1756076960602,-500.0,0.0002105,2]
[381147085,1756076960623,-2774.46231644,0.00021074,2]
[381147086,1756076960646,-16375.93361154,0.00021111,2]
[381147087,1756076960667,-150.0,0.00021118,2]
[381147088,1756076960688,-150.0,0.00021121,2]
[381147089,1756076960708,-2317.0,0.00021149,2]
[381147090,1756076960732,-1183.0,0.00021156,2]
[381147091,1756076960760,-592.78726014,0.00021183,2]
[381147092,1756076960781,-1000.0,0.00021197,2]
[381147093,1756076960804,-1000.0,0.00021199,2]
[381147094,1756076960825,-5511.0,0.000212,3]
[381147095,1756076960847,-500.0,0.00021201,2]
[381147096,1756076960869,-1000.0,0.00021219,2]
[381147097,1756076960890,-1626.62334066,0.00021229,2]
[381147098,1756076960912,-1000.0,0.00021231,2]
[381147099,1756076960934,-303550.85850641,0.00021235,2]
[381147100,1756076960955,-1626.62334066,0.00021235,2]
[381147101,1756076960977,-1425.0,0.00021245,2]
[381147102,1756076960999,-1626.62334066,0.00021249,2]
[381147103,1756076961024,-1626.62334066,0.00021256,2]
[381147104,1756076961047,-303550.85850641,0.00021262,2]
[381147105,1756076961069,-150.0,0.00021264,2]
[381147106,1756076961091,-151.0,0.00021267,2]
[381147107,1756076961113,-151.620543,0.00021267,2]
[381147108,1756076961135,-167.788551,0.00021267,2]
[381147109,1756076961159,-167.788551,0.00021267,2]
[381147110,1756076961182,-167.788551,0.00021267,2]
[381147111,1756076961204,-167.788551,0.00021267,2]
[381147112,1756076961226,-151.0,0.00021267,2]
[381147113,1756076961251,-47924.78870331,0.00021271,2]
[381147114,1756076978777,405.46,0.00025631,120]
[381147115,1756076979642,405.46,0.00028194,120]
[381147128,1756077011131,-300.0,0.00020083,2]
[381147129,1756077011153,-574.0,0.00020083,2]
[381147130,1756077011183,-442.26221752,0.00020084,2]
[381147131,1756077011205,-453.37898006,0.00020084,2]
[381147132,1756077011228,-152.0,0.00020084,2]
[381147133,1756077011252,-500.0,0.00020084,2]
[381147134,1756077011275,-1292.85,0.00020084,2]
[381147135,1756077011298,-1281.42,0.00020084,2]
[381147136,1756077011320,-1250.78,0.00020084,2]
[381147137,1756077011342,-1266.48,0.00020111,2]
[381147138,1756077011365,-1295.34,0.00020111,2]
[381147139,1756077011391,-1281.24,0.00020111,2]
[381147140,1756077011414,-1277.45,0.00020111,2]
[381147141,1756077011436,-1265.41,0.00020146,2]
[381147142,1756077011461,-1266.16,0.00020146,2]
[381147143,1756077011483,-152.0,0.00020152,2]
[381147144,1756077011504,-458.63746581,0.00020334,2]
[381147145,1756077011525,-2751.0,0.00020453,2]
[381147146,1756077011550,-405.46,0.00020505,2]
[381147147,1756077011584,-38014.63,0.00020511,2]
[381147148,1756077011613,-2500.0,0.000209,2]
[381147149,1756077011642,-5000.0,0.000209,2]
[381147150,1756077011665,-166.66,0.00021054,2]
[381147151,1756077011687,-1425.0,0.00021161,2]
[381147152,1756077011707,-1425.0,0.00021189,2]
[381147153,1756077011735,-583.0,0.000212,2]
[381147154,1756077011759,-255626.0698031,0.00021271,2]
[381147155,1756077011782,-1000.0,0.00021273,2]
[381147156,1756077011810,-303550.85850641,0.00021279,2]
[381147157,1756077011831,-294.64036858,0.00021281,2]
[381147158,1756077011853,-1000.0,0.00021281,2]
[381147159,1756077011877,-1425.0,0.00021281,2]
[381147160,1756077011899,-1000.0,0.00021282,2]
[381147161,1756077011921,-1626.62334066,0.00021286,2]
[381147162,1756077011943,-1626.62334066,0.00021291,2]
[381147163,1756077011964,-1000.0,0.00021293,2]
[381147164,1756077011986,-294.64036858,0.00021295,2]
[381147165,1756077012007,-27200.0,0.000213,2]
[381147166,1756077012029,-150.0,0.00021313,2]
[381147167,1756077012053,-150.0,0.00021313,2]
[381147168,1756077012074,-500.0,0.00021313,2]
[381147169,1756077012096,-150.0,0.00021313,2]
[381147170,1756077012118,-150.0,0.00021313,2]
[381147171,1756077012139,-517.0,0.00021313,2]
[381147172,1756077012160,-500.0,0.00021313,2]
[381147173,1756077012187,-294.64036858,0.00021318,2]
[381147174,1756077012220,-1000.0,0.00021323,2]
[381147175,1756077012243,-2186.92,0.00021325,2]
[381147176,1756077012266,-41976.82524004,0.00021327,2]
[381147177,1756077031746,-454.31981427,0.00020083,2]
[381147178,1756077031757,-1269.08,0.00020083,2]
[381147179,1756077031767,-1252.97,0.00020083,2]
[381147181,1756077031776,-1284.45,0.00020083,2]
[381147182,1756077031785,-458.08130327,0.00020084,2]
[381147183,1756077031794,-1272.37,0.00020084,2]
[381147184,1756077031804,-150.0,0.00020607,2]
[381147185,1756077031813,-5136.87634536,0.00021327,2]
[381147186,1756077031905,-424.0,0.00021327,2]
[381147187,1756077031916,-59889.7484303,0.00021327,2]
[381147188,1756077031927,-924.1001,0.00021327,2]
[381147189,1756077031941,-927.61514,0.00021327,2]
[381147190,1756077031974,-1374.05177347,0.00021327,2]
[381147191,1756077031986,-3243.46525856,0.00021327,2]
[381147192,1756077031997,-2174.65779542,0.00021327,2]
[381147193,1756077032008,-95475.90608974,0.00021327,2]
[381147195,1756077032054,-606.97,0.00021327,2]
[381147222,1756077037699,-383.376,0.00020083,2]
[381147228,1756077038162,-604.61428447,0.00020083,2]
[381147232,1756077038191,-269.85971553,0.00020083,2]
[381147235,1756077038201,-151.0,0.0002109,2]
[381147237,1756077038211,-2500.39028447,0.00021327,2]
[381147291,1756077038735,-1248.1067493,0.00021327,2]
[381147438,1756077047437,-1291.92452556,0.00021327,2]
[381147439,1756077048610,-257.93695453,0.00021327,2]
[381147440,1756077048622,-1425.77130673,0.00021327,2]
[381147441,1756077048634,-628.54730425,0.00021327,2]
[381147442,1756077048645,-3396.11454224,0.00021327,2]
[381147443,1756077048657,-1705.270911,0.00021327,2]
[381147444,1756077048715,-301.08987804,0.00021327,2]
[381147445,1756077049595,-78641.4898774,0.00021327,2]
[381147446,1756077049616,-294.64036858,0.00021328,2]
[381147447,1756077049641,-294.64036858,0.00021329,2]
[381147448,1756077049663,-294.64036858,0.00021336,2]
[381147449,1756077049686,-1000.0,0.00021337,2]
[381147450,1756077049709,-91474.58901686,0.00021339,2]
[381147451,1756077050212,-645.42190025,0.00020123,2]
[381147452,1756077052174,-653.05809975,0.00020123,2]
[381147453,1756077052183,-23916.94184133,0.00021339,2]
[381147454,1756077052325,-4664.887554,0.00021339,2]
[381147455,1756077062199,-2939.04358292,0.00021339,2]
[381147456,1756077063768,-8930.6118848,0.00021339,2]
[381147472,1756077516196,168.33,0.00028767,120]
[381147473,1756077583379,400.0,0.00028767,120]
[381147488,1756077908493,9457.26284103,0.00012,2]
[381147489,1756077908530,11000.0,0.00012,2]
[381147490,1756077908568,32808.07808343,0.00012,2]
[381147494,1756077966212,534.31,0.00026442,120]
[381147538,1756078087046,17159.35450657,0.000118,2]
[381147597,1756078232008,-267.8,0.00013699,2]
[381147598,1756078232018,-250.0,0.00015068,2]
[381147599,1756078232028,-203.0,0.00015068,2]
[381147600,1756078232037,-500.0,0.00015068,2]
[381147601,1756078232047,-152.0,0.00015068,2]
[381147602,1756078232057,-152.0,0.00015068,2]
[381147603,1756078232067,-1200.0,0.00016599,2]
[381147604,1756078232076,-300.0,0.00016599,2]
[381147605,1756078232085,-690.81655977,0.000166,3]
[381147606,1756078232101,-263.03648454,0.000166,3]
[381147607,1756078232215,-749.71241844,0.000166,3]
[381147608,1756078232237,-1379.256,0.000166,3]
[381147609,1756078232257,-7491.00509019,0.000166,3]
[381147610,1756078232270,-389.45158187,0.000166,3]
[381147611,1756078232281,-450.1012172,0.000166,3]
[381147613,1756078232292,-12537.79505028,0.000166,3]
[381147615,1756078232308,-14109.93149545,0.000166,3]
[381147617,1756078232318,-10950.79119648,0.00018,2]
[381147620,1756078232327,-250.0,0.000181,2]
[381147621,1756078232337,-2751.0,0.00018761,2]
[381147624,1756078232350,-163.44,0.00018761,2]
[381147626,1756078232359,-7079.1,0.00018771,2]
[381147628,1756078232369,-590.09381828,0.00018914,2]
[381147631,1756078232379,-380.19025013,0.00019001,2]
[381147633,1756078232389,-1000.0,0.00019206,2]
[381147635,1756078232399,-166.4,0.00019213,2]
[381147637,1756078232408,-534.31,0.0001923,2]
[381147639,1756078232418,-164.8,0.0001923,2]
[381147641,1756078232428,-150.0,0.0001923,2]
[381147643,1756078232437,-164.8,0.00019235,2]
[381147645,1756078232448,-164.8,0.0001924,2]
[381147647,1756078232458,-164.8,0.00019245,2]
[381147650,1756078232467,-164.8,0.0001925,2]
[381147654,1756078232476,-164.8,0.00019256,2]
[381147658,1756078232486,-164.8,0.00019261,2]
[381147662,1756078232495,-164.8,0.00019266,2]
[381147665,1756078232504,-164.8,0.00019271,2]
[381147668,1756078232513,-164.8,0.00019276,2]
[381147671,1756078232523,-164.8,0.00019281,2]
[381147673,1756078232532,-164.8,0.00019286,2]
[381147674,1756078232541,-164.8,0.00019291,2]
[381147675,1756078232551,-150.0,0.00019294,2]
[381147676,1756078232560,-500.0,0.00019294,2]
[381147677,1756078232570,-164.8,0.00019296,2]
[381147678,1756078232580,-164.8,0.00019301,2]
[381147679,1756078232591,-164.8,0.00019306,2]
[381147680,1756078232601,-164.8,0.00019311,2]
[381147681,1756078232610,-164.8,0.00019316,2]
[381147682,1756078232619,-164.8,0.00019321,2]
[381147683,1756078232629,-164.8,0.00019327,2]
[381147684,1756078232638,-11321.63244266,0.0001959,2]
[381147685,1756078232648,-454.59215617,0.00020083,2]
[381147686,1756078232666,-152.13,0.00020083,2]
[381147687,1756078232676,-152.19,0.00020083,2]
[381147688,1756078232685,-452.63350134,0.00020083,2]
[381147689,1756078232695,-442.51596601,0.00020083,2]
[381147690,1756078232704,-454.8408966,0.00020083,2]
[381147691,1756078232714,-443.40190996,0.00020083,2]
[381147692,1756078232726,-453.60788084,0.00020083,2]
[381147693,1756078232736,-151.96,0.00020083,2]
[381147694,1756078232745,-457.95294413,0.00020093,2]
[381147695,1756078232755,-451.88729252,0.00020093,2]
[381147696,1756078232776,-1296.03,0.000201,2]
[381147697,1756078232791,-1264.42,0.000201,2]
[381147698,1756078232800,-1270.93,0.000201,2]
[381147699,1756078232810,-886.87967815,0.00020112,2]
[381147700,1756078232822,-163.53359154,0.00020112,2]
[381147701,1756078232844,-1432.11,0.0002016,2]
[381147702,1756078232854,-267.8,0.00020187,2]
[381147703,1756078232863,-150.0,0.00020192,2]
[381147704,1756078232873,-796.90333706,0.00020193,2]
[381147705,1756078232883,-1015.66111586,0.00020194,2]
[381147706,1756078232892,-1234.41889466,0.00020195,2]
[381147707,1756078232902,-1453.17667347,0.00020196,2]
[381147708,1756078232911,-1671.93445227,0.00020197,2]
[381147709,1756078232920,-1890.69223107,0.00020198,2]
[381147710,1756078232930,-200.0,0.000202,2]
[381147711,1756078232940,-500.0,0.000202,2]
[381147712,1756078232950,-152.30241956,0.000202,2]
[381147713,1756078232959,-2109.45000987,0.000202,2]
[381147714,1756078232969,-2328.20778867,0.00020201,2]
[381147715,1756078232978,-2546.96556748,0.00020202,2]
[381147716,1756078232987,-17552.22746578,0.00020209,2]
[381147717,1756078232997,-400.85410091,0.00020211,2]
[381147718,1756078233006,-272.21263076,0.00020211,2]
[381147719,1756078233015,-500.0,0.00020211,2]
[381147720,1756078233025,-546.3610409,0.00020211,2]
[381147721,1756078233035,-731.25269111,0.00020211,2]
[381147722,1756078233045,-207542.4,0.00020212,2]
[381147723,1756078233055,-151.0,0.00020212,2]
[381147724,1756078233065,-160.0,0.00020246,2]
[381147725,1756078233075,-695.39793187,0.00020246,2]
[381147726,1756078233085,-322.6107,0.00020246,2]
[381147727,1756078233096,-267.46074303,0.00020246,2]
[381147728,1756078233105,-5199.43684444,0.00020246,2]
[381147729,1756078233116,-3897.5,0.0002025,2]
[381147730,1756078233125,-500.0,0.00020255,2]
[381147731,1756078233135,-200.0,0.00020273,2]
[381147732,1756078233145,-5391.81600769,0.00020301,2]
[381147733,1756078233154,-25558.84,0.00020309,2]
[381147734,1756078233164,-250.0,0.00020328,2]
[381147735,1756078233173,-366.03,0.00020343,2]
[381147736,1756078233183,-2340.60638322,0.00020351,2]
[381147737,1756078233192,-3172.64401544,0.00020356,2]
[381147738,1756078233202,-666.0,0.00020364,3]
[381147739,1756078233211,-164.1,0.00020386,2]
[381147740,1756078233221,-17552.22746569,0.00020397,2]
[381147741,1756078233230,-500.0,0.00020411,2]
[381147742,1756078233240,-500.0,0.000205,2]
[381147743,1756078233249,-17552.22746569,0.00020585,2]
[381147744,1756078233258,-731.25269107,0.00020597,2]
[381147745,1756078233268,-886.87967814,0.00020727,2]
[381147746,1756078233277,-17552.22746569,0.00020772,2]
[381147747,1756078233287,-17552.22746569,0.0002096,2]
[381147748,1756078233296,-731.25269107,0.00020983,2]
[381147749,1756078233306,-150.30145842,0.00021,2]
[381147750,1756078233315,-467.87,0.00021,2]
[381147751,1756078233325,-572.0,0.000211,2]
[381147752,1756078233334,-163.44,0.00021106,2]
[381147753,1756078233345,-2238.10697,0.0002113,2]
[381147754,1756078233355,-1770.0,0.00021137,2]
[381147755,1756078233364,-17552.22746569,0.00021148,2]
[381147756,1756078233375,-395.25692895,0.0002117,2]
[381147757,1756078233385,-1896.629,0.00021191,2]
[381147758,1756078233394,-223.872,0.00021191,2]
[381147759,1756078233404,-4872.85714286,0.00021229,2]
[381147760,1756078233414,-4872.85714286,0.00021238,2]
[381147761,1756078233423,-4872.85714286,0.00021256,2]
[381147762,1756078233433,-4872.85714286,0.00021298,2]
[381147763,1756078233443,-4872.85714286,0.00021299,2]
[381147764,1756078233452,-2400.0,0.000213,7]
[381147765,1756078233462,-165.7,0.000213,5]
[381147766,1756078233471,-150.0,0.00021313,2]
[381147767,1756078233481,-500.0,0.00021313,2]
[381147768,1756078233491,-500.0,0.00021313,2]
[381147769,1756078233501,-200.0,0.00021313,2]
[381147770,1756078233512,-200.0,0.00021313,2]
[381147771,1756078233521,-150.0,0.00021313,2]
[381147772,1756078233531,-150.0,0.00021313,2]
[381147773,1756078233541,-292.0,0.00021313,2]
[381147774,1756078233550,-755.0,0.00021313,2]
[381147775,1756078233560,-200.0,0.00021313,2]
[381147776,1756078233570,-495.0,0.00021313,2]
[381147777,1756078233580,-150.0,0.00021313,2]
[381147778,1756078233590,-500.0,0.00021313,2]
[381147779,1756078233603,-150.0,0.00021313,2]
[381147780,1756078233613,-150.0,0.00021313,2]
[381147781,1756078233623,-150.0,0.00021313,2]
[381147782,1756078233633,-500.0,0.00021313,2]
[381147783,1756078233643,-150.0,0.00021313,2]
[381147784,1756078233653,-500.0,0.00021313,2]
[381147785,1756078233663,-500.0,0.00021313,2]
[381147786,1756078233673,-150.0,0.00021324,2]
[381147787,1756078233683,-458.63746581,0.0002133,2]
[381147788,1756078233693,-4417.2794352,0.00021335,2]
[381147789,1756078233702,-1158.3394756,0.00021335,2]
[381147790,1756078233713,-17552.22746569,0.00021336,2]
[381147791,1756078233727,-448.97818665,0.00021337,2]
[381147792,1756078233737,-171624.7846265,0.00021339,2]
[381147793,1756078233746,-151.0,0.00021339,2]
[381147794,1756078233755,-171.14727462,0.00021339,2]
[381147795,1756078233766,-1266.48,0.00021339,2]
[381147796,1756078233775,-1289.49,0.00021339,2]
[381147797,1756078233785,-1282.86,0.00021339,2]
[381147798,1756078233797,-212.11701231,0.00021341,2]
[381147799,1756078233808,-886.87967814,0.00021342,2]
[381147800,1756078233818,-294.64036858,0.00021348,2]
[381147801,1756078233828,-441.48484887,0.0002135,2]
[381147802,1756078233838,-441.02418831,0.0002135,2]